bitfinex-derivatives/quotes_BTCF0:USTF0_20250830
["timestamp","ask_amount","ask_price","bid_price","bid_amount"]
[1756573429104,2.44318087,108920.0,108910.0,0.62824393]
[1756573430698,2.44318087,108920.0,108910.0,1.08731393]
[1756573432201,1.20946694,108920.0,108910.0,1.08731393]
[1756573432403,2.44318087,108920.0,108910.0,1.08731393]
[1756573432706,2.44318087,108920.0,108910.0,0.62824393]
[1756573433105,2.44318087,108920.0,108910.0,1.08731393]
[1756573433806,2.39366065,108920.0,108910.0,1.08731393]
[1756573434106,2.44319172,108920.0,108910.0,1.08731393]
[1756573437101,1.61011172,108920.0,108910.0,1.08731393]
[1756573437307,2.44319172,108920.0,108910.0,1.08731393]
[1756573438308,1.61011172,108920.0,108910.0,1.08731393]
[1756573438608,2.44319172,108920.0,108910.0,0.68668]
[1756573438809,2.44319172,108920.0,108910.0,1.08731393]
[1756573439209,2.19319172,108920.0,108910.0,1.08731393]
[1756573439811,1.79255779,108920.0,108910.0,1.08731393]
[1756573440110,2.19319172,108920.0,108910.0,1.08731393]
[1756573441208,2.19319172,108920.0,108910.0,0.68668]
[1756573441507,2.14366065,108920.0,108910.0,1.08731393]
[1756573444311,2.20979829,108920.0,108910.0,1.08731393]
[1756573444812,2.20979829,108920.0,108910.0,0.68668]
[1756573445012,2.20979829,108920.0,108910.0,1.08731393]
[1756573445606,2.20979829,108920.0,108910.0,0.55074]
[1756573446115,1.80916436,108920.0,108910.0,0.72729]
[1756573446313,2.20979829,108920.0,108910.0,0.72729]
[1756573446514,2.20979829,108920.0,108910.0,1.12792393]
[1756573451721,1.37671829,108920.0,108910.0,1.12792393]
[1756573451924,2.20979829,108920.0,108910.0,1.12792393]
[1756573452216,0.97608436,108920.0,108910.0,1.12792393]
[1756573452416,0.46522672,108920.0,108910.0,1.12792393]
[1756573452618,0.51483173,108920.0,108910.0,1.12792393]
[1756573453020,0.87563173,108920.0,108910.0,1.12792393]
[1756573453522,0.51483173,108920.0,108910.0,1.12792393]
[1756573453917,0.53136436,108920.0,108910.0,1.12792393]
[1756573454116,0.53136436,108920.0,108910.0,1.21973343]
[1756573454422,0.34052672,108920.0,108910.0,1.82973343]
[1756573454827,0.34052672,108920.0,108910.0,2.19053343]
[1756573455432,0.39008336,108920.0,108910.0,2.19053343]
[1756573456726,0.39008336,108920.0,108910.0,1.83053343]
[1756573457021,0.13008336,108920.0,108910.0,2.16053343]
[1756573457826,0.13008336,108920.0,108910.0,2.42703343]
[1756573458025,0.13008336,108920.0,108910.0,2.33522393]
[1756573460727,0.13008336,108920.0,108910.0,2.38167901]
[1756573461325,0.08052672,108920.0,108910.0,2.38167901]
[1756573462835,0.41035664,108930.0,108920.0,0.29504]
[1756573462836,0.02152762,108930.0,108920.0,0.29504]
[1756573463135,0.01,108930.0,108920.0,1.98774393]
[1756573463435,0.01,108930.0,108920.0,2.34854393]
[1756573463733,0.01,108930.0,108920.0,2.68866858]
[1756573463927,0.014,108930.0,108920.0,2.68866858]
[1756573464127,0.02,108930.0,108920.0,2.68866858]
[1756573464730,0.018,108930.0,108920.0,2.68866858]
[1756573469640,0.018,108930.0,108920.0,1.85566858]
[1756573469841,0.018,108930.0,108920.0,2.68858858]
[1756573474449,0.018,108930.0,108920.0,2.78038988]
[1756573474642,0.018,108930.0,108920.0,1.94746988]
[1756573474843,0.018,108930.0,108920.0,2.78034988]
[1756573475646,0.03739312,108930.0,108920.0,2.78034988]
[1756573476648,0.03739312,108930.0,108920.0,1.94746988]
[1756573476847,0.03739312,108930.0,108920.0,2.78034988]
[1756573479250,0.03739312,108930.0,108920.0,2.78030988]
[1756573481148,0.03739312,108930.0,108920.0,2.68850858]
[1756573482653,0.03739312,108930.0,108920.0,2.32770858]
[1756573484251,0.03739312,108930.0,108920.0,2.68850858]
[1756573484955,0.03739312,108930.0,108920.0,2.68846858]
[1756573485159,0.03739312,108930.0,108920.0,1.85566858]
[1756573485456,0.03739312,108930.0,108920.0,2.68846858]
[1756573487160,0.018,108930.0,108920.0,2.68846858]
[1756573488059,0.018,108930.0,108920.0,2.78026988]
[1756573491062,0.018,108930.0,108920.0,1.94746988]
[1756573491264,0.018,108930.0,108920.0,2.78026988]
[1756573491960,0.03758617,108930.0,108920.0,2.78026988]
[1756573492760,0.03758617,108930.0,108920.0,2.32119988]
[1756573493064,0.03758617,108930.0,108920.0,2.78026988]
[1756573493862,0.06751355,108930.0,108920.0,2.78026988]
[1756573494064,0.08709972,108930.0,108920.0,2.78026988]
[1756573496961,0.08709972,108930.0,108920.0,2.41946988]
[1756573497163,0.08709972,108930.0,108920.0,2.78026988]
[1756573500172,0.08709972,108930.0,108920.0,2.68846858]
[1756573500369,0.08709972,108930.0,108920.0,1.45503465]
[1756573500571,0.25153972,108930.0,108920.0,2.28779465]
[1756573500869,0.25153972,108930.0,108920.0,2.32762858]
[1756573501572,0.08709972,108930.0,108920.0,2.32762858]
[1756573501778,0.08709972,108930.0,108920.0,1.49486858]
[1756573501962,0.08709972,108930.0,108920.0,2.32762858]
[1756573502462,0.08709972,108930.0,108920.0,1.49486858]
[1756573502663,0.08709972,108930.0,108920.0,2.32762858]
[1756573503584,0.08709972,108930.0,108920.0,2.41942988]
[1756573503976,0.03758617,108930.0,108920.0,2.41942988]
[1756573505070,0.03758617,108930.0,108920.0,2.78022988]
[1756573505477,0.018,108930.0,108920.0,2.78022988]
[1756573505667,0.03758826,108930.0,108920.0,2.78022988]
[1756573507479,0.03758826,108930.0,108920.0,2.68842858]
[1756573512776,0.03758826,108930.0,108920.0,2.78022988]
[1756573514577,0.03758826,108930.0,108920.0,1.85566858]
[1756573514773,0.03758826,108930.0,108920.0,2.68870858]
[1756573515180,0.03758826,108930.0,108920.0,2.32790858]
[1756573515372,0.03758826,108930.0,108920.0,2.68870858]
[1756573515876,0.03758826,108930.0,108920.0,2.32790858]
[1756573516075,0.03758826,108930.0,108920.0,2.78050988]
[1756573517077,0.018,108930.0,108920.0,2.78050988]
[1756573517778,0.41031355,108940.0,108920.0,3.10050988]
[1756573517984,0.01959603,108940.0,108930.0,1.15401683]
[1756573518183,1.09761748,108960.0,108950.0,0.12291]
[1756573518478,1.18761748,108960.0,108950.0,1.53450393]
[1756573518780,1.22535932,108960.0,108950.0,1.53450393]
[1756573519677,1.22735932,108960.0,108950.0,1.53450393]
[1756573522979,1.22735932,108960.0,108950.0,1.80100393]
[1756573528376,0.82672539,108960.0,108950.0,1.80100393]
[1756573528581,1.22735932,108960.0,108950.0,1.80100393]
[1756573529281,1.22735932,108960.0,108950.0,94.10090393]
[1756573529689,1.45735932,108960.0,108950.0,94.10090393]
[1756573531087,1.45735932,108960.0,108950.0,93.26782393]
[1756573531387,1.45735932,108960.0,108950.0,94.10054393]
[1756573533688,1.45735932,108960.0,108950.0,94.55961393]
[1756573534186,1.40784577,108960.0,108950.0,94.55961393]
[1756573535487,1.23369577,108960.0,108950.0,94.55961393]
[1756573535687,0.55306184,108960.0,108950.0,94.55961393]
[1756573535986,1.26369577,108960.0,108950.0,94.55961393]
[1756573536282,0.55306184,108960.0,108950.0,94.55961393]
[1756573536482,1.24369577,108960.0,108950.0,94.55961393]
[1756573536690,0.89306184,108960.0,108950.0,94.55961393]
[1756573537885,1.18117577,108960.0,108950.0,94.55961393]
[1756573538085,0.40054184,108960.0,108950.0,94.5798779]
[1756573538287,0.78054184,108960.0,108950.0,94.5798779]
[1756573538591,0.83004507,108960.0,108950.0,94.5798779]
[1756573539788,1.00112507,108960.0,108950.0,94.17924397]
[1756573539989,1.401759,108960.0,108950.0,94.5798779]
[1756573540489,1.401759,108960.0,108950.0,2.2799779]
[1756573542487,0.83004507,108960.0,108950.0,2.2799779]
[1756573542890,1.230679,108960.0,108950.0,2.2799779]
[1756573543087,0.83004507,108960.0,108950.0,2.2799779]
[1756573543891,0.84667948,108960.0,108950.0,2.2799779]
[1756573545394,0.84467948,108960.0,108950.0,2.2799779]
[1756573545692,0.48387948,108960.0,108950.0,2.2799779]
[1756573545992,0.84467948,108960.0,108950.0,2.2799779]
[1756573547192,0.84467948,108960.0,108950.0,1.87934397]
[1756573547394,0.84467948,108960.0,108950.0,2.2799779]
[1756573548395,0.77854184,108960.0,108950.0,2.2799779]
[1756573550691,0.77854184,108960.0,108950.0,2.25971393]
[1756573552400,0.41774184,108960.0,108950.0,2.25971393]
[1756573552597,0.77854184,108960.0,108950.0,2.25971393]
[1756573552898,0.77854184,108960.0,108950.0,1.80064393]
[1756573553099,0.77854184,108960.0,108950.0,2.25971393]
[1756573557603,0.77854184,108960.0,108950.0,94.55961393]
[1756573558106,0.94962184,108960.0,108950.0,94.15898]
[1756573558305,1.35025577,108960.0,108950.0,94.55961393]
[1756573559909,0.77854184,108960.0,108950.0,94.55961393]
[1756573560206,1.17917577,108960.0,108950.0,94.55961393]
[1756573560608,0.77854184,108960.0,108950.0,94.55961393]
[1756573562710,0.77854184,108960.0,108950.0,94.29311393]
[1756573563616,0.77854184,108960.0,108950.0,94.31361059]
[1756573564112,0.7408,108960.0,108950.0,94.31361059]
[1756573564316,0.79038827,108960.0,108950.0,94.31361059]
[1756573566711,0.79038827,108960.0,108950.0,93.91297666]
[1756573566920,0.79038827,108960.0,108950.0,94.31361059]
[1756573568113,0.42958827,108960.0,108950.0,94.31361059]
[1756573571430,0.38,108960.0,108950.0,94.31361059]
[1756573572130,0.38,108960.0,108950.0,94.40538639]
[1756573572330,0.09958577,108960.0,108950.0,95.05758032]
[1756573572521,0.09958577,108960.0,108950.0,94.65694639]
[1756573572723,0.09958577,108960.0,108950.0,95.01774639]
[1756573572929,0.09958577,108960.0,108950.0,94.65694639]
[1756573572930,0.11916389,108960.0,108950.0,94.65694639]
[1756573573129,0.11916389,108960.0,108950.0,95.41838032]
[1756573573430,0.11916389,108960.0,108950.0,95.19247059]
[1756573575227,0.06957812,108960.0,108950.0,95.19247059]
[1756573578526,0.06957812,108960.0,108950.0,95.21247059]
[1756573578723,0.06957812,108960.0,108950.0,95.24450247]
[1756573579033,0.06957812,108960.0,108950.0,95.6451364]
[1756573579235,0.06957812,108960.0,108950.0,95.61306452]
[1756573579434,0.06957812,108960.0,108950.0,95.21243059]
[1756573579836,0.06957812,108960.0,108950.0,94.37975059]
[1756573580137,0.06957812,108960.0,108950.0,95.21243059]
[1756573581236,0.06957812,108960.0,108950.0,94.37975059]
[1756573581433,0.06957812,108960.0,108950.0,95.21243059]
[1756573581836,0.06957812,108960.0,108950.0,94.83163059]
[1756573582036,0.11916389,108960.0,108950.0,94.83163059]
[1756573582639,0.11916389,108960.0,108950.0,93.99895059]
[1756573582831,0.11916389,108960.0,108950.0,94.37256059]
[1756573582832,0.28843389,108960.0,108950.0,94.37256059]
[1756573583031,0.11916389,108960.0,108950.0,94.83163059]
[1756573583231,0.06957812,108960.0,108950.0,94.83163059]
[1756573583428,0.06957812,108960.0,108950.0,94.98226452]
[1756573583641,0.06957812,108960.0,108950.0,94.93163059]
[1756573583832,0.11916389,108960.0,108950.0,94.93163059]
[1756573584137,0.11916389,108960.0,108950.0,94.58163059]
[1756573585540,0.11916389,108960.0,108950.0,95.00226452]
[1756573585732,0.11916389,108960.0,108950.0,95.32226452]
[1756573586439,0.11916389,108960.0,108950.0,95.68306452]
[1756573587137,1.0289588,108980.0,108960.0,0.01]
[1756573587434,1.00625977,108980.0,108970.0,1.53267393]
[1756573587638,1.4068937,108980.0,108970.0,1.53267393]
[1756573587840,1.25625977,108980.0,108970.0,1.53267393]
[1756573588541,1.08698977,108980.0,108970.0,1.53267393]
[1756573588842,1.25625977,108980.0,108970.0,1.53267393]
[1756573589350,1.05485,108980.0,108970.0,1.53267393]
[1756573589734,1.05485,108980.0,108970.0,1.59111]
[1756573589937,1.05485,108980.0,108970.0,1.99174393]
[1756573590646,0.80485,108980.0,108970.0,2.25824393]
[1756573591449,0.80485,108980.0,108970.0,1.86541]
[1756573591745,0.80485,108980.0,108970.0,2.26604393]
[1756573591946,0.98329,108980.0,108970.0,2.26604393]
[1756573593142,0.98329,108980.0,108960.0,0.01]
[1756573593143,0.29301,108970.0,108960.0,0.58517869]
[1756573593341,1.37444393,108970.0,108960.0,1.42421393]
[1756573593541,0.74381,108970.0,108960.0,1.42421393]
[1756573594044,0.74381,108970.0,108960.0,1.02358]
[1756573594340,0.74381,108970.0,108960.0,1.42421393]
[1756573595044,1.14444393,108970.0,108960.0,1.42421393]
[1756573597046,1.14444393,108970.0,108960.0,1.02358]
[1756573597348,1.14444393,108970.0,108960.0,0.75708]
[1756573597645,1.14444393,108970.0,108960.0,1.15771393]
[1756573597847,1.14444393,108970.0,108960.0,1.60492]
[1756573598051,0.74381,108970.0,108960.0,2.00555393]
[1756573598249,1.14444393,108970.0,108960.0,2.00555393]
[1756573598549,0.71381,108970.0,108960.0,1.60492]
[1756573598750,0.71381,108970.0,108960.0,2.00555393]
[1756573598942,1.11444393,108970.0,108960.0,2.00555393]
[1756573600746,0.75364393,108970.0,108960.0,2.00555393]
[1756573600950,1.11444393,108970.0,108960.0,2.00555393]
[1756573602747,1.11444393,108970.0,108960.0,1.60492]
[1756573602951,1.11444393,108970.0,108960.0,2.00555393]
[1756573603150,1.11444393,108970.0,108960.0,2.27205393]
[1756573610152,1.16397562,108970.0,108960.0,2.27205393]
[1756573611152,0.76334169,108970.0,108960.0,2.27205393]
[1756573611353,1.16397562,108970.0,108960.0,2.27205393]
[1756573612648,1.16397562,108970.0,108960.0,1.81298393]
[1756573613152,1.16397562,108970.0,108960.0,2.27205393]
[1756573613344,1.11444393,108970.0,108960.0,2.27205393]
[1756573614754,0.53537,108970.0,108960.0,2.27205393]
[1756573614949,0.4208,108970.0,108960.0,2.36382223]
[1756573615156,0.41033169,108980.0,108960.0,2.44164223]
[1756573615350,0.76033169,108980.0,108970.0,1.15771393]
[1756573615646,0.76033169,108980.0,108970.0,1.17835092]
[1756573617153,0.7108,108980.0,108970.0,1.17835092]
[1756573620856,0.7108,108980.0,108970.0,1.44485092]
[1756573621254,0.76033169,108980.0,108970.0,1.44485092]
[1756573621854,0.54033169,108980.0,108970.0,1.44485092]
[1756573625155,0.4908,108980.0,108970.0,1.44485092]
[1756573626457,0.54033169,108980.0,108970.0,1.44485092]
[1756573626658,0.54033169,108980.0,108970.0,1.89121699]
[1756573626957,0.36150169,108980.0,108970.0,1.89121699]
[1756573627456,0.31197,108980.0,108970.0,1.89121699]
[1756573627657,0.13,108980.0,108970.0,1.89121699]
[1756573629262,0.4908,108980.0,108970.0,1.89121699]
[1756573629654,0.67277,108980.0,108970.0,1.04421699]
[1756573629850,0.67277,108980.0,108970.0,1.89077699]
[1756573632864,1.28340393,108980.0,108970.0,2.29097092]
[1756573633163,1.34293562,108980.0,108970.0,1.04421699]
[1756573633364,1.34293562,108980.0,108970.0,1.89033699]
[1756573633758,1.34293562,108980.0,108970.0,2.29097092]
[1756573633961,1.29340393,108980.0,108970.0,2.29097092]
[1756573636666,1.29340393,108980.0,108970.0,1.44485092]
[1756573636879,1.40673393,108980.0,108970.0,0.98578092]
[1756573637062,1.40673393,108980.0,108970.0,1.81078393]
[1756573638673,1.40673393,108980.0,108970.0,1.86922]
[1756573638872,1.40673393,108980.0,108970.0,2.26985393]
[1756573639174,1.0061,108980.0,108970.0,2.26957393]
[1756573641677,1.0722151,108980.0,108970.0,2.26957393]
[1756573642673,0.7114151,108980.0,108970.0,1.81050393]
[1756573642974,0.7114151,108980.0,108970.0,2.26957393]
[1756573643175,1.4330151,108980.0,108970.0,2.26957393]
[1756573643878,1.41643876,108980.0,108970.0,2.26957393]
[1756573644878,0.69483876,108980.0,108970.0,2.26957393]
[1756573645071,1.41643876,108980.0,108970.0,2.26957393]
[1756573646871,1.41643876,108980.0,108970.0,2.26865393]
[1756573648680,2.26063876,108980.0,108970.0,1.42421393]
[1756573648981,2.26063876,108980.0,108970.0,2.26841393]
[1756573650681,1.41643876,108980.0,108970.0,2.26841393]
[1756573654382,1.81707269,108980.0,108970.0,2.26841393]
[1756573654982,1.76753393,108980.0,108970.0,2.26841393]
[1756573655174,1.81708667,108980.0,108970.0,2.26841393]
[1756573657085,1.41645274,108980.0,108970.0,2.26841393]
[1756573657282,1.81708667,108980.0,108970.0,2.26841393]
[1756573658384,1.76753393,108980.0,108970.0,2.26841393]
[1756573660984,1.81710003,108980.0,108970.0,2.26841393]
[1756573662288,1.3669,108980.0,108970.0,2.26841393]
[1756573662476,1.76753393,108980.0,108970.0,2.26841393]
[1756573664290,1.81711718,108980.0,108970.0,2.26841393]
[1756573664482,1.76753393,108980.0,108970.0,2.26841393]
[1756573665087,1.81711684,108980.0,108970.0,2.26841393]
[1756573667290,1.81711684,108980.0,108970.0,1.42421393]
[1756573667488,1.81711684,108980.0,108970.0,2.26793393]
[1756573668793,1.81711684,108980.0,108970.0,1.8673]
[1756573668989,1.81711684,108980.0,108970.0,2.26793393]
[1756573669795,1.81711684,108980.0,108970.0,1.42421393]
[1756573669997,1.81711684,108980.0,108970.0,2.26765393]
[1756573670796,1.45631684,108980.0,108970.0,2.26765393]
[1756573672806,1.45631684,108980.0,108970.0,1.80858393]
[1756573673101,1.45631684,108980.0,108970.0,2.26765393]
[1756573673904,1.40673393,108980.0,108970.0,2.26765393]
[1756573675909,1.40673393,108980.0,108970.0,1.02358]
[1756573676107,1.0061,108980.0,108970.0,2.26853393]
[1756573676410,1.40673393,108980.0,108970.0,2.26853393]
[1756573676611,1.40673393,108980.0,108970.0,1.02358]
[1756573676909,1.40673393,108980.0,108970.0,2.26873393]
[1756573678101,1.47284903,108980.0,108970.0,2.26873393]
[1756573679212,1.47284903,108980.0,108970.0,2.26845393]
[1756573679404,1.40673393,108980.0,108970.0,1.02358]
[1756573679604,1.40673393,108980.0,108970.0,2.26833393]
[1756573679810,1.0061,108980.0,108970.0,2.26833393]
[1756573680015,1.40673393,108980.0,108970.0,1.8677]
[1756573680509,1.42623573,108980.0,108970.0,1.8677]
[1756573680707,1.42623573,108980.0,108970.0,1.86766]
[1756573681016,1.67623573,108980.0,108970.0,0.38233]
[1756573682004,1.67623573,108980.0,108970.0,0.2665]
[1756573683809,1.67623573,108980.0,108970.0,0.38415]
[1756573684010,1.74230269,108980.0,108970.0,0.38415]
[1756573684311,1.67623573,108980.0,108970.0,0.38415]
[1756573684902,2.51991573,108980.0,108970.0,0.38415]
[1756573685106,2.51987573,108980.0,108970.0,0.38415]
[1756573685306,2.51987573,108980.0,108970.0,0.56332]
[1756573685810,1.67623573,108980.0,108970.0,0.56332]
[1756573686011,2.51987573,108980.0,108970.0,0.56332]
[1756573686206,2.51987573,108980.0,108970.0,0.29682]
[1756573686806,1.67623573,108980.0,108970.0,0.29682]
[1756573687108,2.51959573,108980.0,108970.0,0.29682]
[1756573688308,2.51943573,108980.0,108970.0,0.29682]
[1756573688507,2.51943573,108980.0,108970.0,0.11765]
[1756573688809,2.58550269,108980.0,108970.0,0.11765]
[1756573689000,2.94630269,108980.0,108970.0,0.11765]
[1756573689403,2.88023573,108980.0,108970.0,0.11765]
[1756573690511,2.4796018,108980.0,108970.0,0.11765]
[1756573690713,2.88023573,108980.0,108970.0,0.11765]
[1756573691708,0.29176,108970.0,108950.0,0.44567]
[1756573691914,2.30644009,108960.0,108950.0,0.56332]
[1756573692117,2.63594189,108960.0,108950.0,0.56332]
[1756573692608,2.63594189,108960.0,108950.0,1.02239]
[1756573694713,1.79302189,108960.0,108950.0,1.02239]
[1756573694919,2.63570189,108960.0,108950.0,1.02239]
[1756573695114,1.79302189,108960.0,108950.0,1.02239]
[1756573696117,1.79302189,108960.0,108950.0,1.42302393]
[1756573698225,1.79302189,108960.0,108950.0,1.02239]
[1756573701425,1.39238796,108960.0,108950.0,1.02239]
[1756573701625,1.79302189,108960.0,108950.0,1.02239]
[1756573702716,1.79302189,108960.0,108950.0,0.56332]
[1756573703027,1.79302189,108960.0,108950.0,1.02239]
[1756573703426,1.79302189,108960.0,108950.0,1.86415]
[1756573704024,1.79302189,108960.0,108950.0,1.86407]
[1756573705327,1.79302189,108960.0,108950.0,1.86399]
[1756573706932,1.43222189,108960.0,108950.0,1.86399]
[1756573707533,1.43222189,108960.0,108950.0,1.02239]
[1756573707835,2.27350189,108960.0,108950.0,1.86371]
[1756573708835,1.43222189,108960.0,108950.0,1.86367]
[1756573710032,1.43222189,108960.0,108950.0,1.02239]
[1756573710236,1.38269573,108960.0,108950.0,1.86431]
[1756573710434,1.38269573,108960.0,108950.0,1.02239]
[1756573710637,1.38269573,108960.0,108950.0,1.03239]
[1756573711428,1.38269573,108960.0,108950.0,0.57672]
[1756573711734,1.69876269,108960.0,108940.0,1.00584]
[1756573711929,1.81599818,108950.0,108940.0,1.00584]
[1756573712128,2.16549998,108950.0,108940.0,1.27234]
[1756573712336,2.16549998,108950.0,108940.0,0.53745]
[1756573712337,2.28112998,108950.0,108940.0,0.53745]
[1756573712537,2.28112998,108950.0,108940.0,0.99652]
[1756573713237,2.28112033,108950.0,108940.0,0.83244]
[1756573714037,2.68175426,108950.0,108940.0,0.83244]
[1756573714338,2.23161573,108950.0,108940.0,0.56594]
[1756573715640,2.29768269,108950.0,108940.0,0.56594]
[1756573715836,2.29788269,108950.0,108940.0,0.56594]
[1756573716337,2.23181573,108950.0,108940.0,0.56594]
[1756573717541,1.38985573,108950.0,108940.0,0.56594]
[1756573717743,2.23189573,108950.0,108940.0,0.56594]
[1756573717946,1.38985573,108950.0,108940.0,0.56594]
[1756573718145,2.23165573,108950.0,108940.0,0.56594]
[1756573718345,2.29772269,108950.0,108940.0,0.56594]
[1756573718644,2.63228966,108950.0,108940.0,0.45907]
[1756573719036,2.23165573,108950.0,108940.0,0.45907]
[1756573719444,2.69835662,108950.0,108940.0,0.45907]
[1756573720044,2.29772269,108950.0,108940.0,0.45907]
[1756573720445,2.69835662,108950.0,108940.0,0.45907]
[1756573720645,2.29756269,108950.0,108940.0,0.56594]
[1756573720842,1.85655662,108950.0,108940.0,0.56594]
[1756573721051,2.29736269,108950.0,108940.0,0.56594]
[1756573722950,2.65816269,108950.0,108940.0,0.56594]
[1756573723142,2.65816269,108950.0,108930.0,0.44058]
[1756573723143,2.89550662,108950.0,108930.0,0.44058]
[1756573723449,1.04035393,108940.0,108930.0,0.2765]
[1756573723639,1.45592269,108940.0,108930.0,0.2665]
[1756573724048,1.47252783,108940.0,108930.0,0.2665]
[1756573724449,1.38985573,108940.0,108930.0,0.2665]
[1756573724753,2.23165573,108940.0,108930.0,0.2665]
[1756573725054,2.31432783,108940.0,108930.0,0.2665]
[1756573725247,1.38985573,108940.0,108930.0,0.2665]
[1756573725450,2.29754603,108940.0,108930.0,0.37337]
[1756573727654,2.29754603,108940.0,108930.0,0.10687]
[1756573727953,2.29755485,108940.0,108930.0,0.10687]
[1756573728147,2.31429665,108940.0,108930.0,0.10687]
[1756573728854,1.47253665,108940.0,108930.0,0.10687]
[1756573729041,2.31409665,108940.0,108930.0,0.10687]
[1756573729240,2.31393665,108940.0,108930.0,0.10687]
[1756573730056,1.47253665,108940.0,108930.0,0.10687]
[1756573730356,2.31381665,108940.0,108930.0,0.10687]
[1756573730668,2.31377665,108940.0,108930.0,0.27095]
[1756573731449,1.47253665,108940.0,108930.0,0.27095]
[1756573731645,1.45573574,108940.0,108930.0,0.73002]
[1756573731850,2.29705574,108940.0,108930.0,0.73002]
[1756573732056,2.29705574,108940.0,108930.0,0.74002]
[1756573732254,2.23118455,108940.0,108930.0,0.74002]
[1756573732556,2.23122455,108940.0,108930.0,0.99002]
[1756573732856,2.23122455,108940.0,108930.0,0.53095]
[1756573733057,2.23122455,108940.0,108930.0,0.99002]
[1756573733558,2.23122455,108940.0,108930.0,1.25652]
[1756573733955,1.43927118,108940.0,108930.0,1.25652]
[1756573734756,1.38986455,108940.0,108930.0,1.25652]
[1756573737362,1.45573574,108940.0,108930.0,1.25652]
[1756573738561,1.05510181,108940.0,108930.0,1.25652]
[1756573738759,1.45573574,108940.0,108930.0,1.25652]
[1756573739261,1.45573574,108940.0,108930.0,1.00652]
[1756573739262,1.45570514,108940.0,108930.0,1.00652]
[1756573739564,1.45570514,108940.0,108930.0,0.74002]
[1756573740162,1.48399638,108940.0,108930.0,0.74002]
[1756573740562,1.48399638,108940.0,108930.0,0.57594]
[1756573742863,1.41812519,108940.0,108930.0,0.57594]
[1756573745468,1.41812519,108940.0,108930.0,0.84244]
[1756573746157,1.41815849,108940.0,108930.0,0.84244]
[1756573746357,1.41815849,108940.0,108930.0,0.2765]
[1756573746557,2.25891849,108940.0,108930.0,0.2765]
[1756573746758,2.25891849,108940.0,108930.0,0.38673]
[1756573748168,1.83002392,108940.0,108930.0,0.38673]
[1756573748368,2.25891849,108940.0,108930.0,0.38673]
[1756573748669,2.25891849,108940.0,108930.0,0.8458]
[1756573749867,2.25867849,108940.0,108930.0,0.8458]
[1756573751276,2.50867849,108940.0,108930.0,0.2765]
[1756573751474,2.57454968,108940.0,108930.0,0.01]
[1756573751972,0.10643,108920.0,108910.0,0.57558275]
[1756573752176,2.31820853,108920.0,108910.0,0.57558275]
[1756573752377,2.31820853,108920.0,108910.0,1.03924275]
[1756573752876,2.26866849,108920.0,108910.0,1.03924275]
[1756573753578,2.26866849,108920.0,108910.0,1.04024275]
[1756573753873,2.62946849,108920.0,108910.0,1.04024275]
[1756573754078,2.62946849,108920.0,108910.0,1.01988]
[1756573754578,2.65062641,108920.0,108910.0,0.85139]
[1756573754774,1.81022641,108920.0,108910.0,1.02188]
[1756573754972,2.65078641,108920.0,108910.0,1.02188]
[1756573756378,2.65078641,108920.0,108910.0,0.85339]
[1756573756575,2.7166576,108920.0,108910.0,0.85339]
[1756573756879,2.65078641,108920.0,108910.0,0.85339]
[1756573757081,2.65078641,108920.0,108910.0,1.02188]
[1756573757282,2.65078641,108920.0,108910.0,0.75538]
[1756573758486,2.70030617,108920.0,108910.0,0.75538]
[1756573759085,2.70030617,108920.0,108910.0,0.58689]
[1756573759590,1.85974617,108920.0,108910.0,0.58689]
[1756573759890,2.69998617,108920.0,108910.0,0.58689]
[1756573760089,2.69998617,108920.0,108910.0,0.75538]
[1756573760689,1.85974617,108920.0,108910.0,0.75538]
[1756573760889,2.69998617,108920.0,108910.0,0.75538]
[1756573761291,2.70010907,108920.0,108910.0,0.75538]
[1756573761590,2.70002907,108920.0,108910.0,0.75538]
[1756573761984,2.67170528,108920.0,108910.0,1.15607368]
[1756573762882,2.67170528,108920.0,108910.0,0.69700368]
[1756573763083,2.67170528,108920.0,108910.0,1.15607368]
[1756573765587,2.62218552,108920.0,108910.0,1.15607368]
[1756573768786,2.22149184,108920.0,108910.0,1.15607368]
[1756573768985,2.62218552,108920.0,108910.0,1.15607368]
[1756573772189,2.68805671,108920.0,108910.0,1.15607368]
[1756573772390,1.84789671,108920.0,108910.0,1.15607368]
[1756573772690,2.68697671,108920.0,108910.0,1.15607368]
[1756573773991,2.67062461,108920.0,108910.0,1.15607368]
[1756573776096,1.83154461,108920.0,108910.0,1.15607368]
[1756573776302,2.62066552,108920.0,108910.0,1.15607368]
[1756573776892,1.78202552,108920.0,108910.0,1.15607368]
[1756573777097,1.24711126,108920.0,108910.0,1.76607368]
[1756573777686,1.40900126,108920.0,108910.0,1.76607368]
[1756573777887,1.40900126,108920.0,108910.0,1.40607368]
[1756573780599,1.43026863,108920.0,108910.0,1.40607368]
[1756573781000,1.43026863,108920.0,108910.0,1.67257368]
[1756573785600,1.83096231,108920.0,108910.0,0.74316]
[1756573785905,2.08096231,108920.0,108910.0,0.28409]
[1756573786097,2.09729616,108920.0,108910.0,0.28409]
[1756573786296,2.09729616,108920.0,108910.0,0.2695]
[1756573787005,2.09729616,108920.0,108910.0,0.003]
[1756573787304,2.09740529,108920.0,108910.0,0.003]
[1756573787505,2.09740529,108920.0,108910.0,0.002]
[1756573788105,2.12570629,108920.0,108900.0,0.01459]
[1756573788293,1.94486289,108910.0,108900.0,0.56825]
[1756573788497,2.27440681,108910.0,108900.0,0.56825]
[1756573788798,2.27440681,108910.0,108900.0,0.57825]
[1756573789604,2.27440681,108910.0,108900.0,0.56825]
[1756573790103,2.27440681,108910.0,108900.0,0.57825]
[1756573791504,2.27440681,108910.0,108900.0,0.74208]
[1756573792606,2.27440681,108910.0,108900.0,0.28301]
[1756573793094,2.27440681,108910.0,108900.0,0.74208]
[1756573795701,2.27440681,108910.0,108900.0,0.57825]
[1756573796306,2.27440681,108910.0,108900.0,0.74208]
[1756573796905,2.27440681,108910.0,108900.0,0.73208]
[1756573797108,2.27440681,108910.0,108900.0,0.74208]
[1756573799306,2.27408681,108910.0,108900.0,0.74208]
[1756573799498,2.27409527,108910.0,108900.0,0.74208]
[1756573800008,2.63489527,108910.0,108900.0,0.74208]
[1756573800209,1.79689527,108910.0,108900.0,0.74208]
[1756573800508,2.58533619,108910.0,108900.0,0.74208]
[1756573800709,2.20579146,108910.0,108900.0,1.17118381]
[1756573801807,2.20579146,108910.0,108900.0,1.16659381]
[1756573802008,1.36779146,108910.0,108900.0,1.16659381]
[1756573802211,1.31823238,108910.0,108900.0,1.16659381]
[1756573802412,2.15623238,108910.0,108900.0,1.16659381]
[1756573802906,2.13668,108910.0,108900.0,1.17118381]
[1756573803107,1.31823102,108910.0,108900.0,1.17118381]
[1756573803313,2.15623102,108910.0,108900.0,1.17118381]